[Event "FRA-ch Teams Top 16-B 2022"]
[Site "Chartres"]
[Date "2022.06.15"]
[Round "7.22"]
[White "Boukhris-Ferre, Yacine"]
[Black "Hutois, Mickael"]
[Result "1/2-1/2"]
[ECO "C78"]
[WhiteElo "2183"]
[BlackElo "2238"]
[Annotator "TA"]
[PlyCount "122"]
[EventDate "2022.06.09"]
[EventType "team-tourn"]
[EventCountry "FRA"]
[SourceTitle "playchess.com"]
[Source "ChessBase"]
[SourceQuality "1"]
[TimeControl "40/5400+30:1800+30"]

{[%evp 12,122,34,50,33,19,26,27,41,21,34,24,41,35,43,31,28,12,41,45,46,35,23,-21,-37,-44,-34,-47,-2,-37,-40,-18,-24,-50,-7,-80,-37,-41,-39,-157,-143,-139,-135,-141,-155,-158,-181,-212,-209,-207,-211,-196,-161,-193,-170,-176,-182,-204,-188,-194,-23,-40,-30,-551,0,0,0,0,0,0,0,0,0,0,0,0,0,0,0,0,0,0,0,0,0,0,0,0,0,0,0,0,0,0,0,0,0,0,0,0,0,0,0,0,0,0,0,0,0,0,0,0,0]} 1. e4 {[%emt 0:00:02]} e5 {[%emt 0:00:05]} 2. Nf3 {[%emt 0:00:04]} Nc6 {[%emt 0:00:03]} 3. Bb5 {[%emt 0:00:04]} a6 {[%emt 0:00:14]} 4. Ba4 {[%emt 0:00:04]} Nf6 {[%emt 0:00:07]} 5. O-O {[%emt 0:00:10]} b5 {[%emt 0:00:05]} 6. Bb3 {[%emt 0:00:03]} Bc5 {[%emt 0:00:06] is the new trend.} 7. a4 {[%emt 0:00:46] Hoping for axb5.} Rb8 {[%emt 0:00:18] [#] C78: Ruy Lopez: Archangelsk and Möller Defences.} (7... Nxe4 $2 8. axb5 Nxf2 9. Qe2 $18 (9. Rxf2 Bxf2+ 10. Kxf2 Nd4 $16)) 8. Nxe5 $1 {[%emt 0:01:36]} Nxe5 {[%emt 0:00:08]} 9. d4 {[%emt 0:00:03]} Bxd4 {[%emt 0:00:06] White has an edge.} 10. Qxd4 {[%emt 0:00:01]} d6 {[%emt 0:00:08]} 11. Bf4 $1 {[%emt 1:33:07]} c5 {[%emt 0:08:04]} 12. Qd2 {[%emt 0:00:00]} c4 {[%emt 0:00:44]} (12... Nxe4 13. Qe1 $16) 13. Ba2 {[%emt 0:00:00]} O-O {[%emt 0:08:54]} (13... bxa4 14. Rd1 Bb7 15. Qxd6 Qxd6 16. Rxd6 Nxe4 17. Rd4 $16 (17. Bxe5 Nxd6 18. Nd2 Rd8 $17)) 14. f3 {[%emt 0:00:00]} Qb6+ {[%emt 0:06:49]} (14... bxa4 15. Nc3 $14) (14... Be6 $5 {[%cal Rb5b4]}) 15. Be3 {[%emt 0:00:00]} Qc7 {[%emt 0:00:17]} 16. Nc3 {[%emt 0:00:00] [#]} Be6 $146 {[%emt 0:02:40]} ({Predecessor:} 16... b4 17. Ne2 Be6 18. Bd4 Rfe8 19. Ng3 Qe7 20. f4 Red8 21. a5 Ned7 22. Qe3 Re8 {1-0 (53) Santos Latasa,J (2585)-Janik,I (2466) Sitges 2019}) 17. Rad1 {[%emt 0:00:00]} b4 {[%emt 0:03:32]} 18. Nd5 {[%emt 0:00:00]} Nxd5 {[%emt 0:12:04]} 19. exd5 {[%emt 0:00:00]} Bd7 {[%emt 0:00:13]} 20. Bd4 {[%emt 0:00:00]} (20. f4 $5 {[%cal Rf4e5]} Ng4 21. Bd4 $11) 20... Bxa4 {[%emt 0:03:04]} 21. f4 {[%emt 0:00:00]} Nd7 {[%emt 0:00:36]} 22. Rf3 {[%emt 0:00:00]} f6 {[%emt 0:00:40]} 23. Rh3 {[%emt 0:00:00]} (23. Re1 $11 {keeps the balance.}) 23... Rf7 {[%emt 0:01:04]} 24. Re1 {[%emt 0:00:00]} Nf8 {[%emt 0:01:02]} 25. Qe2 {[%emt 0:00:00]} (25. Rhe3 $15) 25... Re8 $17 {[%emt 0:04:01]} 26. Qf2 {[%emt 0:00:00]} Rxe1+ {[%emt 0:00:44]} 27. Qxe1 {[%emt 0:00:00]} a5 {[%emt 0:20:07]} 28. c3 {[%emt 0:00:00]} Re7 {[%emt 0:01:06]} 29. Qf2 {[%emt 0:00:00]} Bd7 {[%emt 0:00:57]} 30. f5 {[%emt 0:00:00]} b3 {[%emt 0:02:09]} 31. Bb1 {[%emt 0:00:00][%cal Ba2b1,Bb1e4,Be4d5][%mdl 32]} Qb7 {[%emt 0:00:04]} 32. Re3 {[%emt 0:00:00]} Rxe3 {[%emt 0:02:36]} 33. Qxe3 {[%emt 0:00:00]} Qxd5 {[%emt 0:00:15]} 34. Be4 {[%emt 0:00:00]} Qb5 {[%emt 0:02:05]} 35. Qf3 {[%emt 0:02:45] [#]} a4 $2 {[%emt 0:05:53]} (35... h6 $1 $19 36. Bd5+ Kh8) 36. Bd5+ $11 {[%emt 0:07:58]} Kh8 {[%emt 0:00:05][%cal Oa4a3]} 37. Qe4 $2 {[%emt 0:00:03][%mdl 8192]} (37. g4 $1 $11 a3 38. g5 axb2 39. gxf6 b1=Q+ 40. Kf2) 37... a3 $2 {[%emt 0:00:58]} (37... h6 $19 {[%cal Oa4a3] ...a3! is the strong threat.} 38. Bxf6 gxf6) 38. Bxf6 $1 {[%emt 0:00:18][%cal Oe4e7] White threatens Qe7! and mate. The position is equal.} gxf6 {[%emt 0:00:27]} (38... a2 {is a self mate.} 39. Bxg7+ Kxg7 40. Qe7+ Kh6 41. h4 a1=Q+ 42. Kh2 Ng6 43. fxg6) 39. Qe7 {[%emt 0:00:21][%cal Re7f8]} Qxd5 {[%emt 0:02:00]} 40. Qxf8+ {[%emt 0:02:01]} Qg8 {[%emt 0:00:07]} 41. Qxf6+ {[%emt 0:30:05]} Qg7 {[%emt 0:30:04]} 42. Qd8+ {[%emt 0:00:09]} Be8 {[%emt 0:00:23]} 43. Qxe8+ {[%emt 0:00:36][%mdl 4096] Endgame KQ-KQ} Qg8 {[%emt 0:00:04]} 44. Qe7 {[%emt 0:00:00]} (44. Qxg8+ Kxg8 45. bxa3 b2 46. h3 b1=Q+ 47. Kh2 Qxf5 48. h4 Qe5+ 49. g3 Qxc3 50. a4 Qd2+ 51. Kh3 c3 52. h5 c2 53. Kh4 c1=Q 54. Kg4 Qg5+ 55. Kf3 Qf1+ 56. Ke4 Qe5#) 44... h6 {[%emt 0:00:00]} (44... a2 $5 45. Qf6+ Qg7 46. Qd8+ Qg8 47. Qf6+ Qg7 48. Qd8+ Qg8 49. Qf6+ $11) 45. Qxd6 {[%emt 0:00:00]} (45. Qf6+ Qg7 46. Qd8+ Kh7 47. Qxd6 axb2 48. Qd1 Qa7+ 49. Kf1 Qa1 50. Qe1 Qxe1+ 51. Kxe1 b1=Q+ 52. Kf2 b2 53. g4 Qd3 54. h4 b1=Q 55. Kg2 Qbf1+ 56. Kh2 Qdh3#) 45... Qg5 {[%emt 0:00:00] ( -> ...Qe3+)} 46. Qxa3 {[%emt 0:00:00]} Qe3+ {[%emt 0:00:00]} 47. Kf1 {[%emt 0:00:00]} Qd3+ {[%emt 0:00:00]} 48. Kf2 {[%emt 0:00:00]} Qxf5+ {[%emt 0:00:00]} 49. Ke3 {[%emt 0:00:00]} Qe5+ {[%emt 0:00:00]} 50. Kf3 {[%emt 0:00:00] aiming for Qf8+.} Qf5+ {[%emt 0:00:00]} 51. Ke3 {[%emt 0:00:00] And now Qa8+ would win.} Qe5+ {[%emt 0:00:00]} 52. Kf3 {[%emt 0:00:00]} Qd5+ {[%emt 0:00:00]} 53. Ke3 {[%emt 0:00:00] Threatens to win with Qf8+.} Kg8 {[%emt 0:00:00] Inhibits Qf8+.} 54. Kf2 {[%emt 0:00:00]} Qf5+ {[%emt 0:03:15]} 55. Ke3 {[%emt 0:00:00]} Qe5+ {[%emt 0:04:10]} 56. Kf3 {[%emt 0:00:00] Black must now prevent Qa8+.} Qd5+ {[%emt 0:00:05]} 57. Kf2 {[%emt 0:00:00]} Qd2+ {[%emt 0:02:13]} 58. Kf3 {[%emt 0:00:00]} Qd1+ {[%emt 0:00:26]} 59. Kf2 {[%emt 0:00:00]} Qc2+ {[%emt 0:02:24]} 60. Kf3 {[%emt 0:00:00]} Qf5+ {[%emt 0:02:14]} 61. Ke3 {[%emt 0:00:00] Strongly threatening Qa8+.} Qe5+ {[%emt 0:00:04] Weighted Error Value: White=0.23 (precise) /Black=0.17 (very precise)} 1/2-1/2

[Event "FRA-ch Teams Top 16-B 2022"]
[Site "Chartres"]
[Date "2022.06.15"]
[Round "7.23"]
[White "Le Pen, Steven"]
[Black "Domenech, Vianney"]
[Result "0-1"]
[ECO "B90"]
[WhiteElo "2090"]
[BlackElo "2266"]
[Annotator "NA RC"]
[PlyCount "76"]
[EventDate "2022.06.09"]
[EventType "team-tourn"]
[EventCountry "FRA"]
[SourceTitle "playchess.com"]
[Source "ChessBase"]
[SourceQuality "1"]
[TimeControl "40/5400+30:1800+30"]

1. e4 {[%emt 0:00:04]} c5 {[%emt 0:03:28]} 2. Nf3 {[%emt 0:00:20]} d6 {[%emt 0:00:09]} 3. d4 {[%emt 0:00:29]} cxd4 {[%emt 0:00:04]} 4. Nxd4 {[%emt 0:00:06]} Nf6 {[%emt 0:00:04]} 5. Nc3 {[%emt 0:00:12]} a6 {[%emt 0:00:03]} 6. Be3 {[%emt 0:00:40]} e5 {[%emt 0:00:05]} 7. Nb3 {[%emt 0:00:06]} Be7 {[%emt 0:00:19]} 8. f3 {[%emt 0:00:16]} Be6 {[%emt 0:00:07]} 9. Qd2 {[%emt 0:00:26]} h5 {[%emt 0:00:20]} 10. Nd5 {[%emt 0:03:21]} Bxd5 {[%emt 0:01:47]} 11. exd5 {[%emt 0:00:34]} Nbd7 {[%emt 0:00:29]} 12. Be2 {[%emt 0:01:21]} Qc7 {[%emt 0:02:05]} 13. c4 {[%emt 0:14:59]} a5 {[%emt 0:05:35]} 14. Rc1 {[%emt 0:07:27]} O-O {[%emt 0:18:10]} 15. O-O {[%emt 0:01:23]} h4 {[%emt 0:05:29]} 16. Bg5 {[%emt 0:09:34]} a4 {[%emt 0:01:21]} 17. Na1 {[%emt 0:01:12]} Nc5 {[%emt 0:02:29]} 18. Bxh4 {[%emt 0:11:59]} Nxd5 {[%emt 0:06:11]} 19. Bg3 {[%emt 0:07:56]} Nf4 {[%emt 0:06:31]} 20. Bxf4 {[%emt 0:01:50]} exf4 {[%emt 0:00:20]} 21. Nc2 {[%emt 0:01:26]} Bf6 {[%emt 0:08:42]} 22. Rb1 {[%emt 0:06:36]} Be5 {[%emt 0:02:14]} 23. Nb4 {[%emt 0:03:04]} Ne6 {[%emt 0:00:42]} 24. Nd5 {[%emt 0:01:04]} Qc5+ {[%emt 0:00:04]} 25. Kh1 {[%emt 0:00:08]} g6 {[%emt 0:02:41]} 26. b4 {[%emt 0:01:48]} axb3 {[%emt 0:01:09]} 27. axb3 {[%emt 0:00:14]} Kg7 {[%emt 0:01:19]} 28. Qb4 {[%emt 0:06:52]} Qa7 {[%emt 0:08:18]} 29. Rfd1 {[%emt 0:07:58]} Rh8 {[%emt 0:02:15]} 30. h3 {[%emt 0:01:32]} Nd4 {[%emt 0:08:19]} 31. Bf1 {[%emt 0:00:53]} Nf5 {[%emt 0:00:38]} 32. Nb6 {[%emt 0:04:27]} Qa2 {[%emt 0:04:58]} 33. Qd2 {[%emt 0:03:05]} Ng3+ {[%emt 0:04:34]} 34. Kg1 {[%emt 0:00:17]} Qa7 {[%emt 0:01:37]} 35. Qb4 {[%emt 0:02:38]} Rac8 {[%emt 0:01:18]} 36. Kh2 {[%emt 0:01:08]} Rc6 {[%emt 0:01:14]} 37. Nd5 {[%emt 0:00:44]} Qf2 {[%emt 0:00:29]} 38. Qe1 {[%emt 0:00:49]} Nxf1+ {[%emt 0:00:10]} 0-1

[Event "FRA-ch Teams Top 16-B 2022"]
[Site "Chartres"]
[Date "2022.06.15"]
[Round "7.24"]
[White "Gennesseaux, Gabrielle"]
[Black "Ruhlmann, Helene"]
[Result "0-1"]
[ECO "B51"]
[WhiteElo "1794"]
[BlackElo "1779"]
[Annotator "NA RC COMBH"]
[PlyCount "86"]
[EventDate "2022.06.09"]
[EventType "team-tourn"]
[EventCountry "FRA"]
[SourceTitle "playchess.com"]
[Source "ChessBase"]
[SourceQuality "1"]
[TimeControl "40/5400+30:1800+30"]

1. e4 {[%emt 0:00:03]} c5 {[%emt 0:00:05]} 2. Nf3 {[%emt 0:00:10]} d6 {[%emt 0:00:05]} 3. Bb5+ {[%emt 0:00:11]} Nd7 {[%emt 0:00:08]} 4. c4 {[%emt 0:06:13]} e5 {[%emt 0:00:50]} 5. O-O {[%emt 0:01:49]} a6 {[%emt 0:01:40]} 6. Ba4 {[%emt 0:02:33]} g6 {[%emt 0:09:30]} 7. Nc3 {[%emt 0:03:39]} Ne7 {[%emt 0:00:34]} 8. d3 {[%emt 0:04:21]} Bg7 {[%emt 0:00:44]} 9. Bg5 {[%emt 0:02:23]} O-O {[%emt 0:03:18]} 10. h3 {[%emt 0:07:42]} f6 {[%emt 0:05:43]} 11. Bd2 {[%emt 0:04:34]} f5 {[%emt 0:05:45]} 12. a3 {[%emt 0:11:55]} f4 {[%emt 0:06:57]} 13. b4 {[%emt 0:05:11]} b6 {[%emt 0:00:11]} 14. Rb1 {[%emt 0:05:49]} h6 {[%emt 0:01:54]} 15. Nd5 {[%emt 0:13:09]} Nxd5 {[%emt 0:24:35]} 16. cxd5 {[%emt 0:00:10]} b5 {[%emt 0:00:35]} 17. Bc2 {[%emt 0:04:15]} Rf7 {[%emt 0:06:27]} 18. a4 {[%emt 0:01:09]} Rb8 {[%emt 0:01:12]} 19. axb5 {[%emt 0:01:51]} axb5 {[%emt 0:00:16]} 20. Bc3 {[%emt 0:03:43]} Qf6 {[%emt 0:03:11]} 21. bxc5 {[%emt 0:01:13]} dxc5 {[%emt 0:00:14]} 22. Bb3 {[%emt 0:01:43]} Kh8 {[%emt 0:00:48]} 23. Qc2 {[%emt 0:04:04]} Bf8 {[%emt 0:00:58]} 24. Bb2 {[%emt 0:05:31]} Bd6 {[%emt 0:00:40]} 25. Ra1 {[%emt 0:02:15]} g5 {[%emt 0:03:59]} 26. Nh2 {[%emt 0:02:08]} h5 {[%emt 0:01:18]} 27. f3 {[%emt 0:00:41]} Nf8 {[%emt 0:04:09]} 28. Ra5 {[%emt 0:01:52]} Rg7 {[%emt 0:05:56]} 29. Rfa1 {[%emt 0:01:34]} g4 {[%emt 0:02:30]} 30. fxg4 {[%emt 0:00:06]} hxg4 {[%emt 0:00:12]} 31. hxg4 {[%emt 0:00:18]} Bxg4 {[%emt 0:01:08]} 32. Nxg4 {[%emt 0:00:15]} Rxg4 {[%emt 0:00:08]} 33. Kf2 {[%emt 0:02:19]} Qh4+ {[%emt 0:01:39]} 34. Kg1 {[%emt 0:00:16]} f3 {[%emt 0:00:39]} 35. Qf2 {[%emt 0:01:39]} Rxg2+ {[%emt 0:00:37]} 36. Qxg2 {[%emt 0:00:08]} fxg2 {[%emt 0:00:05]} 37. Kxg2 {[%emt 0:00:05]} Qg5+ {[%emt 0:00:44]} 38. Kf3 {[%emt 0:00:31]} Qf4+ {[%emt 0:00:56]} 39. Ke2 {[%emt 0:00:53]} Qh2+ {[%emt 0:01:24]} 40. Ke3 {[%emt 0:00:29]} Qxb2 {[%emt 0:00:43]} 41. Rh1+ {[%emt 0:30:27]} Kg8 {[%emt 0:30:21]} 42. Ra7 {[%emt 0:00:00]} Qd4+ {[%emt 0:00:00]} 43. Ke2 {[%emt 0:00:00]} c4 {[%emt 0:00:00]} 0-1

[Event "FRA-ch Teams Top 16-B 2022"]
[Site "Chartres"]
[Date "2022.06.15"]
[Round "7.25"]
[White "Van Foreest, Jorden"]
[Black "Donchenko, Alexander"]
[Result "0-1"]
[ECO "B97"]
[WhiteElo "2715"]
[BlackElo "2599"]
[Annotator "TA"]
[PlyCount "46"]
[EventDate "2022.06.09"]
[EventType "team-tourn"]
[EventCountry "FRA"]
[SourceTitle "playchess.com"]
[Source "ChessBase"]
[SourceQuality "1"]
[TimeControl "40/5400+30:1800+30"]

{[%evp 23,46,0,0,0,0,-21,-17,-55,12,10,10,12,11,-8,0,-4,-6,-326,-320,-317,-305,-29964,-29965,-29984,-29985]} 1. e4 {[%emt 0:00:04]} c5 {[%emt 0:00:14]} 2. Nf3 {[%emt 0:00:10]} d6 {[%emt 0:00:05]} 3. d4 {[%emt 0:00:10]} cxd4 {[%emt 0:00:07]} 4. Nxd4 {[%emt 0:00:09]} Nf6 {[%emt 0:00:05]} 5. Nc3 {[%emt 0:00:08]} a6 {[%emt 0:00:06]} 6. Bg5 {[%emt 0:00:14]} e6 {[%emt 0:00:45]} 7. f4 {[%emt 0:00:07]} Qb6 {[%emt 0:00:15]} 8. Qd2 {[%emt 0:00:43]} Qxb2 {[%emt 0:00:09]} 9. Rb1 {[%emt 0:00:06]} Qa3 {[%emt 0:00:05]} 10. Be2 {[%emt 0:00:57]} Nbd7 {[%emt 0:21:52]} 11. O-O {[%emt 0:00:11]} Qc5 {[%emt 0:06:17]} 12. Kh1 {[%emt 0:08:22]} Be7 {[%emt 0:03:11]} 13. f5 {[%emt 0:02:42] B97: Sicilian Najdorf: Poisoned Pawn.} e5 {[%emt 0:01:10]} 14. Ne6 {[%emt 0:13:32]} fxe6 {[%emt 0:00:47]} 15. fxe6 {[%emt 0:00:06] The position is equal.} O-O {[%emt 0:00:18]} 16. exd7 $11 {[%emt 0:02:20]} Bxd7 {[%emt 0:00:07]} 17. Rxb7 {[%emt 0:13:08] And now Bxf6 would win.} Ng4 {[%emt 0:00:42] Hoping for ...Rxf1+.} 18. h3 {[%emt 0:14:19]} (18. Bxe7 $2 Rxf1+ 19. Bxf1 Nf2+ 20. Qxf2 Qxf2 $19) 18... Rxf1+ {[%emt 0:15:11]} 19. Bxf1 {[%emt 0:00:05]} Rf8 {[%emt 0:00:33][%cal Rf8f1] [#]} 20. hxg4 $146 {[%emt 0:15:23][%mdl 8192] Now White is beyond hope.} (20. Be2 $11 {and White is okay.} Bxg5 21. Qxg5 Nf2+ 22. Kh2 Nxh3 23. Qe7 (23. gxh3 Qxc3 24. Qg2 Qc6 $17) 23... Qg1+ 24. Kg3 Qe3+ 25. Kh2 Qf4+ 26. Kh1 Nf2+ 27. Kg1 Nh3+ 28. Kh1 Nf2+ 29. Kg1) ({Predecessor:} 20. Be2 Bxg5 21. Qxg5 Qc6 22. Bxg4 Qxb7 23. Qe7 Qb6 24. Be2 Qc6 25. Nd5 Qxc2 26. Bxa6 Bxh3 {½-½ (36) Selke,H-Tiemann,H DDR 1987}) 20... Rxf1+ $19 {[%emt 0:02:18]} 21. Kh2 {[%emt 0:00:34]} Bxg5 {[%emt 0:13:48] Dancing on a razor blade.} ({And not} 21... Bxg4 22. Be3 Bg5 23. Bxg5 $11 (23. Rb8+ Kf7 $11)) 22. Qxg5 $2 {[%emt 0:01:26] [#]} (22. Rb8+ $19 Rf8 23. Rxf8+ Kxf8 24. Qxg5 Qxc3 25. Qd8+ Be8 26. Qxd6+ Kg8 27. Qb8) 22... Qg1+ $1 {[%emt 0:01:22]} 23. Kh3 {[%emt 0:10:32] [#]} h6 $1 {[%emt 0:05:52] Weighted Error Value: White=1.25/Black=0.10 (very precise)} 0-1

[Event "FRA-ch Teams Top 16-B 2022"]
[Site "Chartres"]
[Date "2022.06.15"]
[Round "7.26"]
[White "Hamitevici, Vladimir"]
[Black "Amin, Bassem"]
[Result "0-1"]
[ECO "D90"]
[WhiteElo "2482"]
[BlackElo "2686"]
[Annotator "TA"]
[PlyCount "52"]
[EventDate "2022.06.09"]
[EventType "team-tourn"]
[EventCountry "FRA"]
[SourceTitle "playchess.com"]
[Source "ChessBase"]
[SourceQuality "1"]
[TimeControl "40/5400+30:1800+30"]

{[%evp 9,52,0,27,33,25,24,12,14,18,0,0,-6,0,-5,-7,-23,-18,-20,-21,-41,-11,-14,-11,-12,-18,-15,0,0,0,0,0,0,0,0,0,0,10,-102,-95,-97,-100,-104,-93,-323,-322]} 1. d4 {[%emt 0:01:10]} Nf6 {[%emt 0:01:00]} 2. c4 {[%emt 0:00:40]} g6 {[%emt 0:00:06]} 3. Nc3 {[%emt 0:01:17]} d5 {[%emt 0:00:41]} 4. Nf3 {[%emt 0:02:30]} Bg7 {[%emt 0:00:31]} 5. h4 {[%emt 0:02:54]} c6 {[%emt 0:02:20]} 6. cxd5 {[%emt 0:01:16] D90: Grünfeld: 4 Nf3 Bg7 sidelines.} cxd5 {[%emt 0:00:28]} 7. Bf4 {[%emt 0:00:07]} Nc6 {[%emt 0:00:35]} 8. e3 {[%emt 0:00:08] The position is equal.} O-O {[%emt 0:00:43]} 9. Be2 {[%emt 0:01:32]} Bg4 {[%emt 0:02:50]} 10. Ne5 {[%emt 0:04:45]} Bxe2 {[%emt 0:01:35]} 11. Qxe2 {[%emt 0:00:08]} Rc8 {[%emt 0:02:54] [#]} 12. Rd1 $146 {[%emt 0:08:33]} ({Predecessor:} 12. Qb5 Nh5 13. Bh2 e6 14. Nf3 Na5 15. O-O Rc4 16. b4 Nc6 17. Qxb7 Rxc3 18. Rac1 Nxd4 19. Nxd4 Bxd4 20. exd4 {0-1 (34) Khismatullin,D (2679)-Ponkratov,P (2624) Khanty-Mansiysk 2014}) 12... Ne4 {[%emt 0:08:13]} 13. Nxe4 {[%emt 0:18:18]} dxe4 {[%emt 0:01:10]} 14. Qb5 {[%emt 0:01:06]} Qa5+ {[%emt 0:18:02]} 15. Qxa5 {[%emt 0:01:15]} Nxa5 {[%emt 0:00:02]} 16. O-O {[%emt 0:05:24]} Rfd8 {[%emt 0:05:53]} 17. b4 {[%emt 0:10:41]} Bxe5 {[%emt 0:07:39]} 18. dxe5 {[%emt 0:00:17]} Nc4 {[%emt 0:00:21]} 19. Rxd8+ {[%emt 0:01:45]} Rxd8 $11 {[%emt 0:00:02][%mdl 4096] Endgame KRB-KRN} 20. Rc1 {[%emt 0:01:25]} Nb6 {[%emt 0:18:01]} 21. Bh6 {[%emt 0:19:47]} Rc8 {[%emt 0:09:56]} 22. Rd1 {[%emt 0:00:40]} e6 {[%emt 0:00:45]} 23. Rd6 {[%emt 0:03:30] [#]} (23. Rd4 $11 {keeps the balance.}) 23... Nc4 $1 $17 {[%emt 0:00:18][%csl LRd6,LRe5][%cal Bb6c4,Bc4e5,Be5f7][%mdl 32]} 24. Rd4 {[%emt 0:01:38]} Nxe5 {[%emt 0:00:41]} 25. Rxe4 {[%emt 0:00:04]} f6 {[%emt 0:00:39] ...Nf7 is the strong threat.} 26. Rd4 $2 {[%emt 0:02:06]} (26. b5 $17 {keeps fighting.}) 26... Nf7 {[%emt 0:00:21] Weighted Error Value: White=0.33/Black=0.05 (flawless)} 0-1

[Event "FRA-ch Teams Top 16-B 2022"]
[Site "Chartres"]
[Date "2022.06.15"]
[Round "7.27"]
[White "Vocaturo, Daniele"]
[Black "Solodovnichenko, Yuri"]
[Result "1-0"]
[ECO "B66"]
[WhiteElo "2608"]
[BlackElo "2499"]
[Annotator "TA"]
[PlyCount "41"]
[EventDate "2022.06.09"]
[EventType "team-tourn"]
[EventCountry "FRA"]
[SourceTitle "playchess.com"]
[Source "ChessBase"]
[SourceQuality "1"]
[TimeControl "40/5400+30:1800+30"]

{[%evp 20,41,70,20,76,89,78,70,97,77,387,385,687,665,711,697,944,937,909,895,1489,1484,1438,1408]} 1. e4 {[%emt 0:02:44]} c5 {[%emt 0:00:06]} 2. Nf3 {[%emt 0:00:22]} Nc6 {[%emt 0:00:05]} 3. d4 {[%emt 0:01:10]} cxd4 {[%emt 0:00:05]} 4. Nxd4 {[%emt 0:00:08]} Nf6 {[%emt 0:00:04]} 5. Nc3 {[%emt 0:00:19]} d6 {[%emt 0:00:05]} 6. Bg5 {[%emt 0:01:45]} e6 {[%emt 0:00:05]} 7. Qd2 {[%emt 0:00:27]} a6 {[%emt 0:00:48]} 8. O-O-O {[%emt 0:01:04]} Be7 {[%emt 0:01:05]} 9. f4 {[%emt 0:02:06]} Nxd4 {[%emt 0:00:15]} 10. Qxd4 {[%emt 0:00:09]} b5 {[%emt 0:00:05]} 11. Be2 {[%emt 0:11:28]} ({White should try} 11. Bxf6 $14 gxf6 12. Be2) 11... Rb8 {[%emt 0:07:06] B66: Sicilian: Richter-Rauzer: 7...a6 8 0-0-0 h6.} (11... Bb7 $11) 12. e5 $16 {[%emt 0:06:42] White is more active.} dxe5 {[%emt 0:01:19]} 13. Qxe5 {[%emt 0:00:43]} Qb6 {[%emt 0:05:05] [#] White is slightly better.} 14. f5 $1 {[%emt 0:04:31] [#]} exf5 $146 {[%emt 0:12:51][%mdl 8192]} (14... Rb7 $16 {is more resistant.}) ({Predecessor:} 14... Rb7 15. Bf3 Rc7 16. Be3 Bc5 17. Bxc5 Qxc5 18. Qxc5 Rxc5 19. fxe6 fxe6 20. Rhe1 Ke7 {½-½ (38) Chandler,M (2540)-Joachim,S (2443) Germany 2002}) 15. Bf3 $18 {[%emt 0:08:48] Threatens to win with Rhe1.} ({Stronger than} 15. Nd5 Nxd5 16. Rxd5 f6 17. Bh5+ Kf8 $15) 15... b4 $2 {[%emt 0:07:57] [#]} (15... Rb7 16. Bxb7 Qxb7 17. Bxf6 gxf6) 16. Rhe1 $1 {[%emt 0:06:23][%csl Ge1][%cal Re5e7] White is clearly winning.} Be6 {[%emt 0:36:48]} (16... O-O 17. Na4) 17. Be3 {[%emt 0:04:01][%mdl 64] Trapped Piece} Ng4 {[%emt 0:06:17]} 18. Bxg4 {[%emt 0:00:55]} Bf6 {[%emt 0:03:14] [#]} 19. Qg3 $1 {[%emt 0:03:14] Strongly threatening Nd5.} Bg5 {[%emt 0:04:02]} (19... bxc3 20. Bxb6) 20. Nd5 {[%emt 0:02:29]} Bxe3+ {[%emt 0:01:02]} 21. Rxe3 {[%emt 0:00:28] Black did not feel at home in the position after the opening.  Weighted Error Value: White=0.06 (flawless) /Black=1.63} 1-0